fUST/lending_fUST_20251203
["ID","MTS","AMOUNT","RATE_DAILY","PERIOD"]
[395929965,1764738634626,-300.0,0.000104,2]
[395929966,1764738634637,-300.0,0.000104,2]
[395929967,1764738634647,-300.0,0.000104,2]
[395929968,1764738634657,-300.0,0.000104,2]
[395929969,1764738634668,-300.0,0.000104,2]
[395929970,1764738634677,-300.0,0.000104,2]
[395929971,1764738634687,-300.0,0.000104,2]
[395929972,1764738634698,-600.0,0.000104,2]
[395929973,1764738634709,-500.0,0.00010465,2]
[395929974,1764738634719,-500.0,0.00010465,2]
[395929975,1764738634729,-993.38,0.00010465,2]
[395929976,1764738634740,-500.0,0.00010465,2]
[395929977,1764738634749,-500.0,0.00010465,2]
[395929978,1764738634760,-500.0,0.00010465,2]
[395929979,1764738634771,-500.0,0.00010465,2]
[395929980,1764738634781,-500.0,0.00010465,2]
[395929981,1764738634791,-500.0,0.00010465,2]
[395929982,1764738634800,-500.0,0.00010465,2]
[395929983,1764738634810,-500.0,0.00010465,2]
[395929984,1764738634820,-1141.65,0.00010465,2]
[395929985,1764738634830,-783.93,0.00010465,2]
[395929986,1764738634839,-500.0,0.00010465,2]
[395929987,1764738634849,-500.0,0.00010465,2]
[395929988,1764738634859,-514.7,0.00010465,2]
[395929989,1764738634869,-500.0,0.00010465,2]
[395929990,1764738634878,-500.0,0.00010465,2]
[395929991,1764738634888,-500.0,0.00010465,2]
[395929992,1764738634898,-500.0,0.00010465,2]
[395929993,1764738634908,-560.37,0.00010465,2]
[395929994,1764738634918,-500.0,0.00010467,2]
[395929995,1764738634927,-500.0,0.00010467,2]
[395929996,1764738634937,-500.0,0.00010467,2]
[395929997,1764738634946,-576.15,0.00010467,2]
[395929998,1764738634956,-610.10396291,0.00010467,2]
[395929999,1764738634966,-1227.51,0.00010467,2]
[395930000,1764738634976,-318.81123969,0.00010467,2]
[395930001,1764738634986,-500.0,0.00010467,2]
[395930002,1764738634996,-496.97774659,0.00010467,2]
[395930003,1764738635006,-500.0,0.00010467,2]
[395930004,1764738635016,-500.0,0.00010467,2]
[395930005,1764738635027,-500.0,0.00010467,2]
[395930006,1764738635036,-500.0,0.00010467,2]
[395930007,1764738635045,-500.0,0.00010467,2]
[395930008,1764738635055,-500.0,0.00010467,2]
[395930009,1764738635065,-500.0,0.00010467,2]
[395930010,1764738635074,-500.0,0.00010467,2]
[395930011,1764738635084,-500.0,0.00010467,2]
[395930012,1764738635095,-500.0,0.00010467,2]
[395930013,1764738635104,-572.76,0.00010467,2]
[395930014,1764738635114,-500.0,0.00010467,2]
[395930015,1764738635124,-500.0,0.00010467,2]
[395930016,1764738635134,-500.0,0.00010467,2]
[395930017,1764738635143,-551.46,0.00010467,2]
[395930018,1764738635153,-500.0,0.00010467,2]
[395930019,1764738635162,-402.77597433,0.00010467,2]
[395930020,1764738635172,-1005.42,0.00010467,2]
[395930021,1764738635181,-500.0,0.00010467,2]
[395930022,1764738635190,-500.0,0.00010467,2]
[395930023,1764738635200,-500.0,0.00010467,2]
[395930024,1764738635209,-500.0,0.00010468,2]
[395930025,1764738635218,-500.0,0.00010468,2]
[395930026,1764738635228,-500.0,0.00010468,2]
[395930027,1764738635237,-500.0,0.00010468,2]
[395930028,1764738635247,-500.0,0.00010468,2]
[395930029,1764738635257,-926.89,0.00010468,2]
[395930030,1764738635267,-609.76,0.00010468,2]
[395930031,1764738635277,-500.0,0.00010468,2]
[395930032,1764738635286,-507.2,0.00010468,2]
[395930033,1764738635295,-500.0,0.00010468,2]
[395930034,1764738635305,-500.0,0.00010468,2]
[395930035,1764738635314,-500.0,0.00010468,2]
[395930036,1764738635323,-500.0,0.00010468,2]
[395930037,1764738635333,-500.0,0.00010468,2]
[395930038,1764738635343,-500.0,0.00010468,2]
[395930039,1764738635352,-500.0,0.00010468,2]
[395930040,1764738635363,-500.0,0.00010468,2]
[395930041,1764738635377,-500.0,0.00010468,2]
[395930042,1764738635386,-922.88,0.00010468,2]
[395930043,1764738635395,-500.0,0.00010468,2]
[395930044,1764738635405,-500.0,0.00010468,2]
[395930045,1764738635415,-500.0,0.00010468,2]
[395930046,1764738635424,-620.17,0.00010468,2]
[395930047,1764738635434,-500.0,0.00010468,2]
[395930048,1764738635443,-500.0,0.00010468,2]
[395930049,1764738635452,-500.0,0.00010468,2]
[395930050,1764738635462,-517.88,0.00010468,2]
[395930051,1764738635471,-500.0,0.00010468,2]
[395930052,1764738635480,-500.0,0.00010468,2]
[395930053,1764738635490,-500.0,0.00010468,2]
[395930054,1764738635499,-500.0,0.00010468,2]
[395930055,1764738635509,-500.0,0.00010468,2]
[395930056,1764738635519,-500.0,0.00010468,2]
[395930057,1764738635528,-500.0,0.00010468,2]
[395930058,1764738635538,-500.0,0.00010468,2]
[395930059,1764738635548,-500.0,0.00010468,2]
[395930060,1764738635557,-500.0,0.00010468,2]
[395930061,1764738635567,-500.0,0.00010468,2]
[395930062,1764738635576,-819.86,0.00010468,2]
[395930063,1764738635586,-500.0,0.00010468,2]
[395930064,1764738635596,-500.0,0.00010468,2]
[395930065,1764738635605,-500.0,0.00010468,2]
[395930066,1764738635615,-500.0,0.00010468,2]
[395930067,1764738635624,-557.8,0.00010468,2]
[395930068,1764738635634,-500.0,0.00010468,2]
[395930069,1764738635643,-674.26,0.00010468,2]
[395930070,1764738635652,-500.0,0.00010468,2]
[395930071,1764738635662,-500.0,0.00010468,2]
[395930072,1764738635671,-510.77,0.00010468,2]
[395930073,1764738635680,-500.0,0.00010468,2]
[395930074,1764738635690,-500.0,0.00010468,2]
[395930075,1764738635699,-500.0,0.00010468,2]
[395930076,1764738635709,-717.05,0.00010468,2]
[395930077,1764738635718,-500.0,0.00010468,2]
[395930078,1764738635728,-628.71916814,0.00010504,2]
[395930079,1764738635737,-3057.33686619,0.0001056,2]
[395930080,1764738635746,-628.71916814,0.0001064,2]
[395930081,1764738635755,-264.07830801,0.00010642,2]
[395930082,1764738635766,-500.0,0.00010739,2]
[395930083,1764738635775,-500.0,0.00010739,2]
[395930084,1764738635785,-993.38,0.00010739,2]
[395930085,1764738635795,-500.0,0.00010739,2]
[395930086,1764738635804,-500.0,0.00010739,2]
[395930087,1764738635814,-500.0,0.00010739,2]
[395930088,1764738635824,-500.0,0.00010739,2]
[395930089,1764738635834,-500.0,0.00010739,2]
[395930090,1764738635843,-500.0,0.00010739,2]
[395930091,1764738635852,-501.9083988,0.00010739,2]
[395930092,1764738635862,-500.0,0.00010739,2]
[395930093,1764738635871,-1141.65,0.00010739,2]
[395930094,1764738635881,-783.93,0.00010739,2]
[395930095,1764738635890,-500.0,0.00010739,2]
[395930096,1764738635900,-500.0,0.00010739,2]
[395930097,1764738635909,-514.7,0.00010739,2]
[395930098,1764738635918,-500.0,0.00010739,2]
[395930099,1764738635928,-500.0,0.00010739,2]
[395930100,1764738635938,-500.0,0.00010739,2]
[395930101,1764738635947,-500.0,0.00010739,2]
[395930102,1764738635957,-560.37,0.00010739,2]
[395930103,1764738635968,-500.0,0.00010741,2]
[395930104,1764738635977,-500.0,0.00010741,2]
[395930105,1764738635987,-478.28860484,0.00010741,2]
[395930108,1764738638463,-21.71139516,0.00010741,2]
[395930109,1764738638472,-576.15,0.00010741,2]
[395930110,1764738638482,-1227.51,0.00010741,2]
[395930111,1764738638491,-500.0,0.00010741,2]
[395930112,1764738638500,-500.0,0.00010741,2]
[395930114,1764738638509,-500.0,0.00010741,2]
[395930116,1764738638519,-500.0,0.00010741,2]
[395930118,1764738638528,-469.63319886,0.00010741,2]
[395930125,1764738638579,-30.36680114,0.00010741,2]
[395930127,1764738638589,-500.0,0.00010741,2]
[395930129,1764738638599,-500.0,0.00010741,2]
[395930131,1764738638609,-500.0,0.00010741,2]
[395930133,1764738638619,-500.0,0.00010741,2]
[395930135,1764738638628,-572.76,0.00010741,2]
[395930137,1764738638638,-500.0,0.00010741,2]
[395930139,1764738638648,-551.46,0.00010741,2]
[395930141,1764738638657,-1005.42,0.00010741,2]
[395930143,1764738638667,-500.0,0.00010741,2]
[395930145,1764738638676,-500.0,0.00010741,2]
[395930147,1764738638686,-500.0,0.00010741,2]
[395930149,1764738638695,-500.0,0.00010742,2]
[395930151,1764738638705,-500.0,0.00010742,2]
[395930153,1764738638714,-500.0,0.00010742,2]
[395930155,1764738638723,-500.0,0.00010742,2]
[395930157,1764738638733,-500.0,0.00010742,2]
[395930159,1764738638742,-926.89,0.00010742,2]
[395930161,1764738638751,-609.76,0.00010742,2]
[395930163,1764738638763,-500.0,0.00010742,2]
[395930165,1764738638772,-507.2,0.00010742,2]
[395930167,1764738638781,-500.0,0.00010742,2]
[395930169,1764738638791,-500.0,0.00010742,2]
[395930171,1764738638800,-500.0,0.00010742,2]
[395930173,1764738638810,-500.0,0.00010742,2]
[395930175,1764738638819,-500.0,0.00010742,2]
[395930177,1764738638828,-500.0,0.00010742,2]
[395930179,1764738638837,-500.0,0.00010742,2]
[395930181,1764738638847,-500.0,0.00010742,2]
[395930183,1764738638856,-500.0,0.00010742,2]
[395930185,1764738638866,-922.88,0.00010742,2]
[395930187,1764738638876,-54.06836856,0.00010742,2]
[395930189,1764738638887,-314.31281285,0.00010742,2]
[395930191,1764738638896,-500.0,0.00010742,2]
[395930193,1764738638905,-303.32376408,0.00010742,2]
[395930195,1764738638916,-196.67623592,0.00010742,2]
[395930198,1764738638927,-620.17,0.00010742,2]
[395930200,1764738638936,-219.94822424,0.00010742,2]
[395930202,1764738638946,-500.0,0.00010742,2]
[395930203,1764738638956,-99.8008641,0.00010742,2]
[395930206,1764738638968,-400.1991359,0.00010742,2]
[395930208,1764738638978,-62.8008641,0.00010742,2]
[395930210,1764738638989,-455.0791359,0.00010742,2]
[395930212,1764738638999,-500.0,0.00010742,2]
[395930214,1764738639009,-500.0,0.00010742,2]
[395930216,1764738639019,-500.0,0.00010742,2]
[395930218,1764738639029,-108.65892065,0.00010742,2]
[395930220,1764738639041,-391.34107935,0.00010742,2]
[395930222,1764738639052,-500.0,0.00010742,2]
[395930224,1764738639062,-394.6881052,0.00010742,2]
[395930227,1764738639074,-105.3118948,0.00010742,2]
[395930229,1764738639083,-500.0,0.00010742,2]
[395930230,1764738639092,-500.0,0.00010742,2]
[395930232,1764738639102,-500.0,0.00010742,2]
[395930235,1764738639112,-500.0,0.00010742,2]
[395930236,1764738639121,-500.0,0.00010742,2]
[395930239,1764738639131,-819.86,0.00010742,2]
[395930240,1764738639140,-500.0,0.00010742,2]
[395930242,1764738639150,-500.0,0.00010742,2]
[395930244,1764738639160,-557.8,0.00010742,2]
[395930247,1764738639169,-351.66854897,0.00010742,2]
[395930248,1764738639179,-674.26,0.00010742,2]
[395930250,1764738639188,-500.0,0.00010742,2]
[395930252,1764738639197,-437.59421304,0.00010742,2]
[395930751,1764738644577,-62.40578696,0.00010742,2]
[395930753,1764738644586,-510.77,0.00010742,2]
[395930755,1764738644595,-500.0,0.00010742,2]
[395930757,1764738644604,-500.0,0.00010742,2]
[395930759,1764738644614,-500.0,0.00010742,2]
[395930761,1764738644623,-717.05,0.00010742,2]
[395930763,1764738644632,-500.0,0.00010742,2]
[395930764,1764738644641,-628.71916814,0.00010777,2]
[395930766,1764738644651,-628.71916814,0.00010913,2]
[395930768,1764738644660,-58.8942547,0.00010913,2]
[395930772,1764738644690,-2502.35060588,0.00010913,2]
[395931034,1764738647294,176.74553172,9.481e-05,2]
[395931042,1764738647363,-1075.6164,0.00010913,2]
[395931044,1764738647378,-1075.6164,0.00010913,2]
[395937217,1764738715163,-500.0,0.00010187,2]
[395937221,1764738715190,-500.0,0.00010187,2]
[395937224,1764738715216,-500.0,0.00010187,2]
[395937228,1764738715244,-536.04190762,0.00010187,2]
[395937232,1764738715272,-500.0,0.00010187,2]
[395937236,1764738715298,-544.05738796,0.00010187,2]
[395937240,1764738715324,-409.86210964,0.00010187,2]
[395940044,1764739022923,250.0,0.0002,30]
[395940502,1764739610512,739.02229917,9.489e-05,2]
[395940503,1764739626042,739.02229917,9.489e-05,2]
[395940798,1764739832562,-380.69664756,9.537e-05,2]
[395940799,1764739832572,-229.0,9.537e-05,2]
[395940800,1764739832581,-380.69664756,9.585e-05,2]
[395940801,1764739832591,-401.58530212,9.889e-05,2]
[395940802,1764739832601,-4011.9111454,0.00010384,2]
[395940803,1764739832611,-1200.0,0.00010387,2]
[395940804,1764739832620,-1200.0,0.00010388,2]
[395940805,1764739832631,-300.0,0.00010388,2]
[395940806,1764739832640,-500.0,0.00010389,2]
[395940807,1764739832650,-233.49566487,0.00010389,2]
[395940808,1764739832659,-300.0,0.0001039,2]
[395940809,1764739832669,-300.0,0.0001039,2]
[395940810,1764739832679,-300.0,0.0001039,2]
[395940811,1764739832688,-300.0,0.0001039,2]
[395940812,1764739832710,-300.0,0.0001039,2]
[395940813,1764739832725,-300.0,0.0001039,2]
[395940814,1764739832739,-300.0,0.0001039,2]
[395940815,1764739832751,-300.0,0.0001039,2]
[395940816,1764739832764,-300.0,0.0001039,2]
[395940817,1764739832777,-300.0,0.0001039,2]
[395940818,1764739832788,-300.0,0.0001039,2]
[395940819,1764739832799,-300.0,0.0001039,2]
[395940820,1764739832810,-300.0,0.0001039,2]
[395940821,1764739832822,-300.0,0.0001039,2]
[395940822,1764739832834,-300.0,0.0001039,2]
[395940823,1764739832846,-158.136,0.0001039,2]
[395940824,1764739832858,-50000.0,0.0001039,2]
[395940825,1764739832869,-4160.35185778,0.00010439,2]
[395940826,1764739832881,-4314.28487652,0.00010494,2]
[395940827,1764739832891,-157.0,0.000105,2]
[395940828,1764739832903,-184.0,0.000105,2]
[395940829,1764739832915,-4473.91341695,0.00010549,2]
[395940830,1764739832927,-600.0,0.00010597,2]
[395940831,1764739832938,-4639.44821338,0.00010604,2]
[395940832,1764739832949,-4811.10779728,0.00010659,2]
[395940833,1764739832960,-4989.11878578,0.00010714,2]
[395940834,1764739832972,-431.86052133,0.00010764,2]
[395940835,1764739832984,-5173.71618085,0.00010769,2]
[395940836,1764739832996,-431.8605213,0.00010822,2]
[395940837,1764739833007,-5365.14367954,0.00010824,2]
[395940838,1764739833020,-540.34170235,0.00010852,2]
[395940839,1764739833032,-500.0,0.00010852,2]
[395940840,1764739833043,-500.0,0.00010852,2]
[395940841,1764739833055,-500.0,0.00010852,2]
[395940842,1764739833071,-500.0,0.00010852,2]
[395940843,1764739833083,-500.0,0.00010852,2]
[395940844,1764739833095,-500.0,0.00010852,2]
[395940845,1764739833107,-500.0,0.00010852,2]
[395940846,1764739833119,-516.47056431,0.00010852,2]
[395940847,1764739833131,-6408.90406078,0.00010859,2]
[395940848,1764739833145,-44661.66161688,0.00010859,2]
[395940849,1764739833231,-42.75755426,0.00010859,2]
[395940850,1764739833276,-131759.47070626,0.00010859,2]
[395940851,1764739833294,-1334.95939631,0.00010859,2]
[395940969,1764739839320,-80087.49839664,0.00010859,2]
[395940973,1764739839348,-17246.27715036,0.00010859,2]
[395940976,1764739839366,-50327.20767049,0.00010859,2]
[395940978,1764739839377,-23241.93743262,0.00010859,2]
[395940980,1764739839388,-32987.89925653,0.00010859,2]
[395940983,1764739839399,-19227.72316444,0.00010859,2]
[395940985,1764739839409,-16861.96021824,0.00010859,2]
[395940987,1764739839420,-3335.44602688,0.00010859,2]
[395940989,1764739839434,-343.48819371,0.00010859,2]
[395940992,1764739839453,-1142.13736508,0.00010859,2]
[395940995,1764739839463,-1567.3008456,0.00010859,2]
[395940997,1764739839474,-617.98410226,0.00010859,2]
[395940999,1764739839484,-1373.14626632,0.00010859,2]
[395941161,1764739841028,-457432.24057634,0.00010859,2]
[395941163,1764739841037,-591.99979007,0.00010864,2]
[395941165,1764739841047,-5563.65399568,0.00010879,2]
[395941167,1764739841055,-431.8605213,0.0001088,2]
[395941169,1764739841064,-2655.60418421,0.00010934,2]
[395941171,1764739841075,-601.7533848,0.00010934,2]
[395941419,1764739843796,-17194.30524317,0.00010394,2]
[395941421,1764739843808,-25740.0,0.00010394,2]
[395941721,1764739846932,-40063.90011786,0.00010394,2]
[395953668,1764739982389,250.0,0.0002,30]
[395953969,1764740098534,259.68738175,9.481e-05,2]
[395954019,1764740652189,2896.0,0.0002,30]
[395954057,1764740691559,840.0,0.0002,30]
[395954262,1764740942937,250.0,0.0002,30]
[395954264,1764740998574,173.24029932,9.481e-05,2]
[395954291,1764741031829,-232.0,9.884e-05,2]
[395954292,1764741031839,-232.0,9.984e-05,2]
[395954294,1764741031848,-135.05464446,0.00010085,2]
[395954297,1764741031890,-241.55953774,0.00010085,2]
[395954299,1764741031899,-300.0,0.00010293,2]
[395954301,1764741031909,-300.0,0.00010293,2]
[395954302,1764741031918,-291.0,0.00010293,2]
[395954305,1764741031927,-41819.78669415,0.00010294,2]
[395954306,1764741031938,-15309.59553563,0.00010294,2]
[395954309,1764741031949,-610.94909855,0.00010294,2]
[395954380,1764741038021,-232.0,9.785e-05,2]
[395954382,1764741038031,-3191.76980866,0.00010294,2]
[395954384,1764741038041,-172.74420852,0.00010343,2]
[395954386,1764741038051,-1074.14457132,0.00010386,2]
[395954388,1764741038062,-673.35,0.00010386,2]
[395954396,1764741038136,-2264.41657408,0.00010386,2]
[395954398,1764741038146,-500.0,0.00010391,2]
[395954400,1764741038156,-323.15042526,0.00010391,2]
[395954402,1764741038169,-297.66139568,0.00010391,2]
[395954404,1764741038178,-508.35601448,0.00010391,2]
[395954406,1764741038187,-57.92258984,0.00010392,2]
[395954413,1764741038247,-100.21341016,0.00010392,2]
[395954415,1764741038257,-417.03213264,0.00010393,2]
[395954417,1764741038265,-3630.84512911,0.00010441,2]
[395954611,1764741040091,-529.50672867,0.00010441,2]
[395954613,1764741040100,-172.74420852,0.00010482,2]
[395954615,1764741040111,-3297.74906281,0.00010496,2]
[395954625,1764741040205,-1016.53581371,0.00010496,2]
[395954626,1764741040215,-2983.46284129,0.00010551,2]
[395955058,1764741044600,-1490.45057566,0.00010551,2]
[395955060,1764741044610,-300.0,0.00010601,2]
[395955062,1764741044620,-300.0,0.00010601,2]
[395955065,1764741044630,-300.0,0.00010601,2]
[395955067,1764741044640,-300.0,0.00010601,2]
[395955068,1764741044649,-300.0,0.00010601,2]
[395955071,1764741044659,-300.0,0.00010601,2]
[395955073,1764741044668,-300.0,0.00010601,2]
[395955075,1764741044679,-300.0,0.00010601,2]
[395955077,1764741044689,-300.0,0.00010601,2]
[395955079,1764741044698,-300.0,0.00010601,2]
[395955081,1764741044707,-300.0,0.00010601,2]
[395955083,1764741044716,-300.0,0.00010601,2]
[395955085,1764741044725,-300.0,0.00010601,2]
[395955087,1764741044734,-300.0,0.00010601,2]
[395955089,1764741044744,-300.0,0.00010601,2]
[395955091,1764741044753,-600.0,0.00010601,2]
[395955093,1764741044763,-4639.44821338,0.00010606,2]
[395955094,1764741044772,-172.74420852,0.00010622,2]
[395955096,1764741044782,-4811.10779728,0.00010661,2]
[395955098,1764741044791,-4989.11878578,0.00010716,2]
[395955100,1764741044801,-172.74420852,0.00010761,2]
[395955102,1764741044810,-5173.71618085,0.00010771,2]
[395955104,1764741044819,-5365.14367954,0.00010826,2]
[395955106,1764741044828,-5563.65399568,0.00010881,2]
[395955108,1764741044837,-172.74420852,0.000109,2]
[395955110,1764741044847,-7055.51059147,0.000109,2]
[395955112,1764741044856,-1499.44260632,0.00010926,2]
[395955114,1764741044865,-5769.50919352,0.00010936,2]
[395955116,1764741044875,-500.0,0.00010959,2]
[395955118,1764741044884,-500.0,0.00010959,2]
[395955120,1764741044893,-153.0,0.00010959,2]
[395955122,1764741044902,-153.0,0.00010959,2]
[395955124,1764741044911,-153.0,0.00010959,2]
[395955126,1764741044920,-151.0,0.00010959,2]
[395955128,1764741044929,-151.0,0.00010959,2]
[395955130,1764741044939,-151.0,0.00010959,2]
[395955132,1764741044948,-151.0,0.00010959,2]
[395955134,1764741044957,-151.0,0.00010959,2]
[395955136,1764741044966,-151.0,0.00010959,2]
[395955138,1764741044976,-151.0,0.00010959,2]
[395955140,1764741044985,-500.0,0.00010959,2]
[395955142,1764741044994,-500.0,0.00010959,2]
[395955144,1764741045003,-500.0,0.00010959,2]
[395955146,1764741045013,-500.0,0.00010959,2]
[395955148,1764741045022,-500.0,0.00010959,2]
[395955150,1764741045031,-500.0,0.00010959,2]
[395955152,1764741045040,-500.0,0.00010959,2]
[395955154,1764741045050,-500.0,0.00010959,2]
[395955156,1764741045059,-500.0,0.00010959,2]
[395955158,1764741045068,-500.0,0.00010959,2]
[395955160,1764741045078,-500.0,0.00010959,2]
[395955162,1764741045086,-392.75550693,0.00010959,2]
[395955164,1764741045096,-500.0,0.00010959,2]
[395955166,1764741045105,-500.0,0.00010959,2]
[395955168,1764741045115,-500.0,0.00010959,2]
[395955170,1764741045125,-500.0,0.00010959,2]
[395955173,1764741045138,-500.0,0.00010959,2]
[395955174,1764741045147,-500.0,0.00010959,2]
[395955177,1764741045157,-500.0,0.00010959,2]
[395955179,1764741045167,-500.0,0.00010959,2]
[395955181,1764741045176,-500.0,0.00010959,2]
[395955183,1764741045187,-500.0,0.00010959,2]
[395955185,1764741045197,-500.0,0.00010959,2]
[395955186,1764741045208,-500.0,0.00010959,2]
[395955188,1764741045219,-500.0,0.00010959,2]
[395955190,1764741045228,-500.0,0.00010959,2]
[395955192,1764741045237,-500.0,0.00010959,2]
[395955194,1764741045247,-500.0,0.00010959,2]
[395955196,1764741045256,-500.0,0.00010959,2]
[395955199,1764741045265,-500.0,0.00010959,2]
[395955201,1764741045276,-500.0,0.00010959,2]
[395955203,1764741045285,-500.0,0.00010959,2]
[395955205,1764741045295,-500.0,0.00010959,2]
[395955207,1764741045303,-500.0,0.00010959,2]
[395955209,1764741045313,-500.0,0.00010959,2]
[395955211,1764741045323,-500.0,0.00010959,2]
[395955212,1764741045332,-500.0,0.00010959,2]
[395955215,1764741045342,-500.0,0.00010959,2]
[395955216,1764741045351,-500.0,0.00010959,2]
[395955218,1764741045360,-500.0,0.00010959,2]
[395955220,1764741045371,-500.0,0.00010959,2]
[395955223,1764741045380,-500.0,0.00010959,2]
[395955226,1764741045390,-500.0,0.00010959,2]
[395955228,1764741045401,-500.0,0.00010959,2]
[395955230,1764741045411,-5982.98103368,0.00010991,2]
[395955232,1764741045420,-2619389.30718264,0.00011,2]
[395955234,1764741045430,-151.0,0.00011,2]
[395955236,1764741045439,-151.0,0.00011,2]
[395955238,1764741045450,-151.0,0.00011,2]
[395955240,1764741045460,-151.0,0.00011,2]
[395955241,1764741045470,-170.89258635,0.00011,2]
[395955242,1764741045480,-151.0,0.00011,2]
[395955243,1764741045490,-170.349557,0.00011,2]
[395955244,1764741045499,-151.0,0.00011,2]
[395955245,1764741045509,-653.30011,0.00011,2]
[395955246,1764741045519,-151.0,0.00011,2]
[395955247,1764741045529,-653.30011,0.00011,2]
[395955248,1764741045538,-215.756452,0.00011,2]
[395955249,1764741045548,-653.30011,0.00011,2]
[395955250,1764741045558,-653.30011,0.00011,2]
[395955251,1764741045568,-190.75767703,0.00011096,2]
[395955252,1764741045578,-151.0,0.00011096,2]
[395955253,1764741045588,-151.0,0.00011096,2]
[395955254,1764741045598,-151.0,0.00011096,2]
[395955255,1764741045607,-195.98370261,0.00011096,2]
[395955256,1764741045617,-252.86380593,0.00011096,2]
[395955257,1764741045627,-173.59645329,0.00011096,2]
[395955258,1764741045637,-500.0,0.00011213,2]
[395955259,1764741045647,-500.0,0.00011213,2]
[395955260,1764741045656,-500.0,0.00011233,2]
[395955261,1764741045666,-151.0,0.00011233,2]
[395955263,1764741045675,-151.0,0.00011233,2]
[395955265,1764741045685,-251.49132907,0.00011233,2]
[395955267,1764741045694,-420.0,0.00011319,2]
[395955269,1764741045704,-500.0,0.0001135,2]
[395955271,1764741045713,-500.0,0.0001135,2]
[395955273,1764741045722,-397.0957897,0.0001137,2]
[395955275,1764741045732,-397.0957897,0.0001137,2]
[395955277,1764741045742,-793.8778829,0.0001137,2]
[395955279,1764741045751,-794.1915794,0.0001137,2]
[395955281,1764741045761,-397.0957897,0.0001137,2]
[395955283,1764741045770,-397.0957897,0.0001137,2]
[395955285,1764741045780,-402.8505201,0.0001137,2]
[395955287,1764741045790,-397.0957897,0.0001137,2]
[395955289,1764741045799,-315.6415095,0.0001137,2]
[395955291,1764741045808,-151.0,0.0001137,2]
[395955293,1764741045820,-297.37588965,0.0001137,2]
[395955295,1764741045830,-500.0,0.00011487,2]
[395955297,1764741045839,-206.96625254,0.00011487,2]
[395955299,1764741045848,-500.0,0.00011507,2]
[395955301,1764741045858,-151.0,0.00011507,2]
[395955303,1764741045867,-2154.0,0.00011512,2]
[395955305,1764741045876,-1359.0,0.00011512,2]
[395955307,1764741045887,-500.0,0.00011624,2]
[395955309,1764741045897,-156.64342184,0.00011644,2]
[395955311,1764741045907,-720.0,0.00011661,2]
[395955313,1764741045918,-346.97492544,0.00011714,2]
[395955315,1764741045928,-4025.1152293,0.00011714,2]
[395955317,1764741045937,-500.0,0.00011761,2]
[395955319,1764741045947,-4025.1152293,0.00011782,2]
[395955321,1764741045956,-4025.1152293,0.0001185,2]
[395955323,1764741045966,-500.0,0.00011898,2]
[395955325,1764741045975,-4025.1152293,0.00011918,2]
[395955327,1764741045985,-4025.1152293,0.00011986,2]
[395955329,1764741045994,-500.0,0.00012035,2]
[395955331,1764741046003,-4025.1152293,0.00012054,2]
[395955333,1764741046015,-500.0,0.00012055,2]
[395955335,1764741046024,-444.404735,0.00012085,2]
[395955337,1764741046033,-4025.1152293,0.00012122,2]
[395955339,1764741046042,-500.0,0.00012172,2]
[395955341,1764741046052,-4025.1152293,0.0001219,2]